[Event "Mitropa Cup Women 2024"]
[Site "Apolda"]
[Date "2024.02.18"]
[Round "4.19"]
[White "Berke, Ana"]
[Black "Navrotescu, Andreea"]
[Result "1-0"]
[ECO "C72"]
[WhiteElo "2092"]
[BlackElo "2222"]
[Annotator "RC"]
[PlyCount "101"]
[EventDate "2024.02.15"]
[EventType "team-tourn"]
[EventCountry "GER"]
[SourceTitle "playchess.com"]
[Source "ChessBase"]
[SourceQuality "1"]
[WhiteTeam "Croatia"]
[BlackTeam "France"]
[WhiteTeamCountry "CRO"]
[BlackTeamCountry "FRA"]
[TimeControl "40/5400+30:1800+30"]

1. e4 {[%emt 0:00:04]} e5 {[%emt 0:00:05]} 2. Nf3 {[%emt 0:00:26]} Nc6 {[%emt 0:00:06]} 3. Bb5 {[%emt 0:00:11]} a6 {[%emt 0:00:05]} 4. Ba4 {[%emt 0:00:07]} d6 {[%emt 0:00:05]} 5. O-O {[%emt 0:01:28]} Bg4 {[%emt 0:00:06]} 6. c3 {[%emt 0:01:55]} Qf6 {[%emt 0:05:35]} 7. d3 {[%emt 0:02:40]} Nge7 {[%emt 0:09:13]} 8. Nbd2 {[%emt 0:05:20]} g5 {[%emt 0:02:49]} 9. Re1 {[%emt 0:05:07]} Ng6 {[%emt 0:12:14]} 10. h3 {[%emt 0:06:48]} Bd7 {[%emt 0:07:15]} 11. Nf1 {[%emt 0:05:41]} Nf4 {[%emt 0:02:07]} 12. Ne3 {[%emt 0:02:03]} Qg6 {[%emt 0:16:38]} 13. Nd5 {[%emt 0:03:39]} O-O-O {[%emt 0:01:12]} 14. b4 {[%emt 0:05:07]} Rg8 {[%emt 0:03:25]} 15. Nh2 {[%emt 0:04:18]} h5 {[%emt 0:03:42]} 16. b5 {[%emt 0:02:54]} axb5 {[%emt 0:01:20]} 17. Bxb5 {[%emt 0:01:39]} g4 {[%emt 0:00:35]} 18. hxg4 {[%emt 0:03:27]} hxg4 {[%emt 0:12:47]} 19. Nxf4 {[%emt 0:01:43]} exf4 {[%emt 0:00:05]} 20. Bxf4 {[%emt 0:00:53]} Bh6 {[%emt 0:01:46]} 21. Bg3 {[%emt 0:02:39]} f5 {[%emt 0:01:47]} 22. exf5 {[%emt 0:01:52]} Qxf5 {[%emt 0:00:02]} 23. Qa4 {[%emt 0:03:22]} Bd2 {[%emt 0:04:11]} 24. Reb1 {[%emt 0:02:39]} Bxc3 {[%emt 0:11:32]} 25. Qa8+ {[%emt 0:07:49]} Nb8 {[%emt 0:00:01]} 26. Qxb7+ {[%emt 0:09:13]} Kxb7 {[%emt 0:00:02]} 27. Bxd7+ {[%emt 0:00:09]} Ka7 {[%emt 0:01:25]} 28. Bxf5 {[%emt 0:00:07]} Nc6 {[%emt 0:00:35]} 29. Bxg4 {[%emt 0:02:53]} Nd4 {[%emt 0:00:29]} 30. a4 {[%emt 0:00:52]} Bxa1 {[%emt 0:00:06]} 31. Rxa1 {[%emt 0:00:25]} Rb8 {[%emt 0:00:20]} 32. f4 {[%emt 0:01:58]} c5 {[%emt 0:00:33]} 33. Bf2 {[%emt 0:00:49]} Nc2 {[%emt 0:00:28]} 34. Rc1 {[%emt 0:00:55]} Nb4 {[%emt 0:00:32]} 35. Rd1 {[%emt 0:02:05]} Rgf8 {[%emt 0:01:59]} 36. g3 {[%emt 0:00:35]} Ka6 {[%emt 0:00:44]} 37. Bd7 {[%emt 0:01:30]} Rb7 {[%emt 0:01:40]} 38. Bb5+ {[%emt 0:00:11]} Kb6 {[%emt 0:00:04]} 39. d4 {[%emt 0:00:46]} c4 {[%emt 0:01:34]} 40. d5+ {[%emt 0:01:01]} Ka5 {[%emt 0:00:13]} 41. Bxc4 {[%emt 0:31:15]} Nc2 {[%emt 0:30:26]} 42. Bb5 {[%emt 0:00:47]} Kb4 {[%emt 0:00:31]} 43. Nf3 {[%emt 0:00:28]} Rg7 {[%emt 0:00:00]} 44. Ng5 {[%emt 0:00:00]} Rc8 {[%emt 0:00:00]} 45. Rb1+ {[%emt 0:00:00]} Ka5 {[%emt 0:00:00]} 46. Bc6 {[%emt 0:00:00]} Na3 {[%emt 0:00:00]} 47. Rb3 {[%emt 0:00:00]} Nc4 {[%emt 0:00:00]} 48. Ne6 {[%emt 0:00:00]} Rh7 {[%emt 0:00:00]} 49. Be1+ {[%emt 0:00:00]} Ka6 {[%emt 0:00:00]} 50. Bb5+ {[%emt 0:00:00]} Ka7 {[%emt 0:00:00]} 51. Bf2+ {[%emt 0:00:00]} 1-0

[Event "Mitropa Cup Women 2024"]
[Site "Apolda"]
[Date "2024.02.18"]
[Round "4.20"]
[White "Blanquet, Camille"]
[Black "Vujnovic, Patricija"]
[Result "1-0"]
[ECO "D37"]
[WhiteElo "2023"]
[BlackElo "2104"]
[Annotator "NA RC"]
[PlyCount "161"]
[EventDate "2024.02.15"]
[EventType "team-tourn"]
[EventCountry "GER"]
[SourceTitle "playchess.com"]
[Source "ChessBase"]
[SourceQuality "1"]
[WhiteTeam "France"]
[BlackTeam "Croatia"]
[WhiteTeamCountry "FRA"]
[BlackTeamCountry "CRO"]
[TimeControl "40/5400+30:1800+30"]

1. d4 {[%emt 0:00:03]} d5 {[%emt 0:00:05]} 2. c4 {[%emt 0:00:14]} e6 {[%emt 0:00:05]} 3. Nf3 {[%emt 0:00:25]} Nf6 {[%emt 0:00:13]} 4. Nc3 {[%emt 0:00:15]} a6 {[%emt 0:00:35]} 5. cxd5 {[%emt 0:05:36]} exd5 {[%emt 0:00:04]} 6. Bg5 {[%emt 0:01:12]} Be6 {[%emt 0:00:46]} 7. e3 {[%emt 0:01:05]} Nbd7 {[%emt 0:04:31]} 8. Bd3 {[%emt 0:02:16]} Bd6 {[%emt 0:02:40]} 9. O-O {[%emt 0:01:35]} c6 {[%emt 0:01:04]} 10. Qc2 {[%emt 0:04:00]} Qc7 {[%emt 0:03:17]} 11. e4 {[%emt 0:08:14]} dxe4 {[%emt 0:01:46]} 12. Nxe4 {[%emt 0:00:15]} Nxe4 {[%emt 0:02:00]} 13. Bxe4 {[%emt 0:00:05]} h6 {[%emt 0:00:59]} 14. Bh4 {[%emt 0:03:56]} O-O {[%emt 0:01:30]} 15. Bg3 {[%emt 0:00:58]} Nf6 {[%emt 0:07:55]} 16. Bf5 {[%emt 0:02:34]} Bxf5 {[%emt 0:01:47]} 17. Qxf5 {[%emt 0:00:08]} Bxg3 {[%emt 0:00:41]} 18. hxg3 {[%emt 0:00:09]} Rad8 {[%emt 0:05:52]} 19. Rfe1 {[%emt 0:02:53]} Rd5 {[%emt 0:05:35]} 20. Re5 {[%emt 0:05:25]} Qb6 {[%emt 0:08:53]} 21. Qc2 {[%emt 0:03:05]} Rfd8 {[%emt 0:10:31]} 22. Rae1 {[%emt 0:01:31]} Qc7 {[%emt 0:05:30]} 23. Re7 {[%emt 0:07:21]} R5d7 {[%emt 0:00:32]} 24. R7e5 {[%emt 0:03:20]} g6 {[%emt 0:05:59]} 25. Qc1 {[%emt 0:07:16]} Kg7 {[%emt 0:02:04]} 26. Qf4 {[%emt 0:02:32]} Nd5 {[%emt 0:02:09]} 27. Qe4 {[%emt 0:02:27]} Qd6 {[%emt 0:04:31]} 28. a3 {[%emt 0:02:44]} Nc7 {[%emt 0:03:32]} 29. Qg4 {[%emt 0:08:31]} Qf6 {[%emt 0:03:01]} 30. Qe4 {[%emt 0:04:46]} Nb5 {[%emt 0:04:52]} 31. Rd1 {[%emt 0:02:30]} Rd5 {[%emt 0:03:25]} 32. a4 {[%emt 0:03:32]} Rxe5 {[%emt 0:03:29]} 33. Nxe5 {[%emt 0:01:48]} Nc7 {[%emt 0:03:57]} 34. Rd3 {[%emt 0:02:30]} Qd6 {[%emt 0:00:33]} 35. Qe3 {[%emt 0:01:23]} Nd5 {[%emt 0:02:21]} 36. Qd2 {[%emt 0:01:06]} Nb4 {[%emt 0:00:39]} 37. Nc4 {[%emt 0:06:23]} Qe7 {[%emt 0:01:02]} 38. Re3 {[%emt 0:00:39]} Qf8 {[%emt 0:00:05]} 39. Rf3 {[%emt 0:00:59]} c5 {[%emt 0:00:31]} 40. Qf4 {[%emt 0:01:14]} Rxd4 {[%emt 0:00:43]} 41. Qf6+ {[%emt 0:31:41]} Kg8 {[%emt 0:02:21]} 42. Ne3 {[%emt 0:00:00]} Nd5 {[%emt 0:07:11]} 43. Nxd5 {[%emt 0:00:00]} Rxd5 {[%emt 0:00:01]} 44. Rb3 {[%emt 0:00:00]} Qe8 {[%emt 0:07:44]} 45. g4 {[%emt 0:00:00]} b5 {[%emt 0:01:56]} 46. Qf4 {[%emt 0:00:00]} Rd4 {[%emt 0:05:06]} 47. Qxh6 {[%emt 0:00:00]} Rxa4 {[%emt 0:03:26]} 48. Rh3 {[%emt 0:00:05]} Qe1+ {[%emt 0:00:38]} 49. Kh2 {[%emt 0:00:03]} Qe5+ {[%emt 0:00:03]} 50. g3 {[%emt 0:01:47]} Rxg4 {[%emt 0:02:58]} 51. Qd2 {[%emt 0:00:49]} Rd4 {[%emt 0:01:13]} 52. Qc3 {[%emt 0:00:42]} Rd5 {[%emt 0:02:39]} 53. Qf3 {[%emt 0:00:23]} Qf5 {[%emt 0:00:59]} 54. Qe3 {[%emt 0:00:15]} Qe5 {[%emt 0:00:09]} 55. Qf3 {[%emt 0:00:13]} Kg7 {[%emt 0:01:07]} 56. Qg4 {[%emt 0:00:40]} Qf5 {[%emt 0:00:14]} 57. Qe2 {[%emt 0:00:06]} Re5 {[%emt 0:00:32]} 58. Qd2 {[%emt 0:00:04]} g5 {[%emt 0:00:54]} 59. Rh5 {[%emt 0:01:51]} Rd5 {[%emt 0:00:30]} 60. Qe3 {[%emt 0:00:25]} Re5 {[%emt 0:00:28]} 61. Qd2 {[%emt 0:00:08]} Kg6 {[%emt 0:00:30]} 62. Rh8 {[%emt 0:00:49]} Kg7 {[%emt 0:00:22]} 63. Rh5 {[%emt 0:00:06]} Rd5 {[%emt 0:00:21]} 64. Qe3 {[%emt 0:00:10]} Qg6 {[%emt 0:00:28]} 65. Rh3 {[%emt 0:00:05]} c4 {[%emt 0:00:43]} 66. Qe8 {[%emt 0:00:18]} Kf6 {[%emt 0:00:32]} 67. Qf8 {[%emt 0:02:20]} Ke5 {[%emt 0:00:28]} 68. Rh6 {[%emt 0:00:25]} Qf5 {[%emt 0:00:36]} 69. Qe7+ {[%emt 0:00:05]} Qe6 {[%emt 0:00:34]} 70. Rxe6+ {[%emt 0:00:06]} fxe6 {[%emt 0:00:03]} 71. Qxg5+ {[%emt 0:00:07]} Kd6 {[%emt 0:00:05]} 72. Qd8+ {[%emt 0:00:57]} Kc5 {[%emt 0:00:47]} 73. Qc8+ {[%emt 0:00:19]} Kd4 {[%emt 0:00:38]} 74. Qxe6 {[%emt 0:00:21]} Re5 {[%emt 0:00:17]} 75. Qd6+ {[%emt 0:00:40]} Rd5 {[%emt 0:00:45]} 76. Qxa6 {[%emt 0:00:20]} Kd3 {[%emt 0:00:31]} 77. Qa3+ {[%emt 0:00:27]} Ke2 {[%emt 0:00:11]} 78. Qe3+ {[%emt 0:00:27]} Kf1 {[%emt 0:00:04]} 79. Qc1+ {[%emt 0:01:34]} Ke2 {[%emt 0:00:29]} 80. Kg2 {[%emt 0:00:22]} Rd1 {[%emt 0:00:18]} 81. Qe3# {[%emt 0:00:09]} 1-0

[Event "Mitropa Cup Women 2024"]
[Site "Apolda"]
[Date "2024.02.19"]
[Round "5.1"]
[White "Iglesias, Yosha"]
[Black "Terbe, Julianna"]
[Result "1/2-1/2"]
[ECO "D02"]
[WhiteElo "2260"]
[BlackElo "2315"]
[Annotator "TA"]
[PlyCount "91"]
[EventDate "2024.02.15"]
[EventType "team-tourn"]
[EventCountry "GER"]
[SourceTitle "playchess.com"]
[Source "ChessBase"]
[SourceQuality "1"]
[WhiteTeam "France"]
[BlackTeam "Hungary"]
[WhiteTeamCountry "FRA"]
[BlackTeamCountry "HUN"]
[TimeControl "40/5400+30:1800+30"]

{[%evp 11,91,-4,0,0,0,4,2,0,4,-12,18,8,20,-2,27,-22,-10,-64,-65,-63,-44,-60,-45,-71,-77,-81,-68,-68,-62,-77,-88,-105,-91,-85,-75,-214,-195,-238,-209,-366,-360,-461,-327,-289,-220,-230,-218,-221,-219,-206,-164,-214,-87,-148,-142,-148,-81,-86,-91,-89,-75,-93,0,-93,-80,-281,-19,-20,0,-14,-4,-16,0,-23,-26,-27,0,0,0,0,0,0]} 1. d4 {[%emt 0:00:04]} d5 {[%emt 0:00:07]} 2. Nf3 {[%emt 0:00:07]} Nf6 {[%emt 0:00:07]} 3. Bf4 {[%emt 0:00:04]} c5 {[%emt 0:00:18]} 4. e3 {[%emt 0:00:05]} Nc6 {[%emt 0:00:04]} 5. Nbd2 {[%emt 0:00:07]} e6 {[%emt 0:00:24]} 6. c3 {[%emt 0:00:12]} Nh5 {[%emt 0:00:08]} 7. Bg5 {[%emt 0:00:44]} f6 {[%emt 0:00:07]} 8. Bh4 {[%emt 0:00:06][%cal Of3e5]} g6 {[%emt 0:00:16]} 9. Bd3 {[%emt 0:00:08]} Be7 {[%emt 0:00:22]} 10. dxc5 {[%emt 0:11:58]} a5 {[%emt 0:01:27]} 11. O-O {[%emt 0:00:37]} O-O {[%emt 0:00:28]} 12. c4 {[%emt 0:00:39]} d4 $1 {[%emt 0:05:03]} 13. exd4 {[%emt 0:08:36]} (13. Ne4 $142) 13... Nxd4 $11 {[%emt 0:00:22]} 14. Nb3 {[%emt 0:13:16]} (14. Ne4 $11) 14... Nxb3 {[%emt 0:10:06]} 15. Qxb3 {[%emt 0:01:00]} Bxc5 {[%emt 0:02:03]} 16. Rad1 {[%emt 0:06:58][%cal Od3g6]} Qc7 {[%emt 0:03:04]} 17. Rfe1 {[%emt 0:06:06]} g5 {[%emt 0:14:02]} 18. Bg3 {[%emt 0:05:33]} Nxg3 {[%emt 0:00:21]} 19. hxg3 {[%emt 0:00:05]} g4 {[%emt 0:25:18]} 20. Nd2 {[%emt 0:01:02]} f5 {[%emt 0:01:42] Repels Ne4} 21. Bc2 {[%emt 0:06:38]} e5 {[%emt 0:08:44]} 22. Nf1 {[%emt 0:03:20]} Ra6 {[%emt 0:06:14]} 23. Ne3 {[%emt 0:09:09]} (23. Qc3 $17 {might work better.} Re6 24. Re2) 23... Rh6 {[%emt 0:08:55]} 24. Nd5 {[%emt 0:02:33]} Qg7 {[%emt 0:02:27] And now ...f4 would win.} 25. Qc3 $2 {[%emt 0:11:31]} (25. Qb5 b6 26. Nxb6 Bxb6 27. Rxe5) 25... f4 $19 {[%emt 0:01:49]} 26. Rd2 {[%emt 0:05:47]} fxg3 {[%emt 0:04:50]} (26... Bd4 27. Rxd4 exd4 28. Qxa5 fxg3 29. fxg3 $17) 27. Qxg3 {[%emt 0:00:07]} Qg5 {[%emt 0:00:35]} 28. Ne3 {[%emt 0:02:37]} Bb4 {[%emt 0:01:25]} 29. Red1 {[%emt 0:00:02]} Bxd2 {[%emt 0:01:34]} 30. Rxd2 {[%emt 0:00:08]} b6 {[%emt 0:00:54]} 31. Rd5 {[%emt 0:00:53] [#]} (31. Be4 {was worth a try.}) 31... Qh5 {[%emt 0:01:00]} (31... Rf4 $1 $19 {Strongly threatening ...Be6.} 32. b3 Kf7) 32. Kf1 {[%emt 0:00:17]} ({White should try} 32. f3) 32... Rhf6 {[%emt 0:00:16]} 33. Kg1 {[%emt 0:00:50]} Rf4 {[%emt 0:01:23]} ({Better is} 33... Rxf2 34. Rxe5 Qh6) 34. c5 $17 {[%emt 0:01:55]} bxc5 {[%emt 0:00:51]} 35. Rxc5 {[%emt 0:00:07]} a4 {[%emt 0:00:16]} 36. b3 {[%emt 0:03:44]} Ba6 {[%emt 0:00:54]} (36... Kh8 $17 37. Rc7 axb3 38. axb3 (38. Rxh7+ $2 {is the wrong capture.} Qxh7 39. Bxh7 bxa2 $19) 38... R4f7) 37. Rc6 {[%emt 0:01:08] Active counter play!} (37. f3 $1 $11 {was the only way to keep the balance.}) 37... Be2 {[%emt 0:00:25] ...Rxf2 would now be deadly.} 38. f3 {[%emt 0:00:24] [#]} (38. bxa4 $17 {keeps fighting.} Rxf2 39. Bb3+ Kg7 40. Rc7+ Kh8 41. Qxf2 Rxf2 42. Rc8+ Kg7 43. Rg8+ Kf6 44. Kxf2) 38... Kh8 $2 {[%emt 0:00:30]} ({Black should play} 38... Bxf3 $1 $19 39. Rc7 (39. gxf3 $2 {perishes.} Rxf3 40. Qxg4+ Qxg4+ 41. Nxg4 Rg3+ 42. Kh2 Rxg4 $19) 39... Be2 (39... Be4 $2 40. bxa4 Qg5 41. Bd1 $19)) 39. Rc7 $11 {[%emt 0:00:08] Dancing on a razor blade.} R8f7 {[%emt 0:00:21]} ({Not} 39... gxf3 40. Qg7#) 40. Rxf7 {[%emt 0:00:32]} Qxf7 {[%emt 0:00:20]} 41. Nxg4 {[%emt 0:02:21]} Qc7 {[%emt 0:07:32]} 42. Be4 {[%emt 0:04:01]} (42. Qh4 $5) 42... axb3 {[%emt 0:00:58]} 43. axb3 {[%emt 0:00:07]} Rxe4 {[%emt 0:07:36]} 44. fxe4 {[%emt 0:01:58] The position is equal.} Qg7 {[%emt 0:00:13]} 45. Qxe5 $1 {[%emt 0:00:30]} Bxg4 {[%emt 0:00:06]} 46. Qe8+ {[%emt 0:25:16] Weighted Error Value: White=0.32/Black=0.27 (precise) .  Loses game:     	White=1     	---        Missed win:     	---       	Black=1      Mistake:       	White=7     	Black=3      Inaccurate:     	White=1     	Black=2      OK:         	White=8     	Black=16     Best:        	White=2     	Black=2      Strong:       	White=1     	Black=1} 1/2-1/2

[Event "Mitropa Cup Women 2024"]
[Site "Apolda"]
[Date "2024.02.19"]
[Round "5.2"]
[White "Demeter, Dorina"]
[Black "Schippke, Manon"]
[Result "1/2-1/2"]
[ECO "A11"]
[WhiteElo "2271"]
[BlackElo "2162"]
[Annotator "TA"]
[PlyCount "94"]
[EventDate "2024.02.15"]
[EventType "team-tourn"]
[EventCountry "GER"]
[SourceTitle "playchess.com"]
[Source "ChessBase"]
[SourceQuality "1"]
[WhiteTeam "Hungary"]
[BlackTeam "France"]
[WhiteTeamCountry "HUN"]
[BlackTeamCountry "FRA"]
[TimeControl "40/5400+30:1800+30"]

{[%evp 13,94,0,8,-17,-8,-33,-22,-40,-25,-27,-24,-45,0,-20,-25,-37,-27,-35,-29,-37,-25,-40,-19,-23,-29,-29,-32,-39,-23,-39,-31,-39,-40,-39,-30,-71,-30,-33,-20,-25,-23,-36,-18,-32,0,-15,0,0,28,19,33,31,95,54,46,58,58,54,63,69,61,58,149,144,160,141,148,152,156,11,25,0,0,0,0,0,0,0,0,0,0,0,0]} 1. Nf3 {[%emt 0:00:13]} d5 {[%emt 0:00:10]} 2. e3 {[%emt 0:01:03]} Nf6 {[%emt 0:01:35]} 3. c4 {[%emt 0:00:29]} e6 {[%emt 0:01:34]} 4. Nc3 {[%emt 0:00:27]} c6 {[%emt 0:00:13]} 5. b3 {[%emt 0:00:50]} Nbd7 {[%emt 0:00:33]} 6. Bb2 {[%emt 0:00:14]} Bd6 {[%emt 0:01:43]} 7. Qc2 {[%emt 0:00:11]} O-O {[%emt 0:03:29]} 8. cxd5 {[%emt 0:00:35]} exd5 {[%emt 0:00:23]} 9. Ne2 {[%emt 0:19:13]} Re8 {[%emt 0:09:28]} 10. Ng3 {[%emt 0:01:58]} a5 {[%emt 0:06:47][%cal Oa5a4]} 11. a3 {[%emt 0:08:41]} Nc5 {[%emt 0:07:50]} 12. Nd4 {[%emt 0:02:53]} Qb6 {[%emt 0:16:13]} 13. Rb1 {[%emt 0:16:09]} Be5 {[%emt 0:05:28]} 14. Be2 {[%emt 0:01:27]} Nce4 {[%emt 0:04:08]} 15. f4 {[%emt 0:06:03] Nxe4 is the strong threat.} Bd6 {[%emt 0:06:59]} 16. Nxe4 {[%emt 0:07:22]} dxe4 {[%emt 0:02:28]} 17. O-O {[%emt 0:03:30][%cal Ob3b4]} Bd7 {[%emt 0:00:30]} 18. Bc4 {[%emt 0:03:53][%cal Ob3b4]} Qd8 {[%emt 0:02:03]} 19. a4 {[%emt 0:03:16]} Qe7 {[%emt 0:01:56]} 20. Bc3 {[%emt 0:01:07]} Rec8 {[%emt 0:07:00]} 21. Qb2 {[%emt 0:00:57]} Ba3 {[%emt 0:02:03]} 22. Qa1 {[%emt 0:00:18]} Bb4 {[%emt 0:01:03]} 23. Rfc1 {[%emt 0:02:35]} Rab8 {[%emt 0:00:49]} 24. Bxb4 {[%emt 0:02:55]} Qxb4 {[%emt 0:00:57]} 25. Nc2 {[%emt 0:02:56]} Qd6 {[%emt 0:02:05][%cal Ob7b5]} ({Reject} 25... Qxd2 $6 26. Rd1 Qxc2 27. Rbc1 $16) 26. Qd4 {[%emt 0:01:33]} Qxd4 {[%emt 0:03:39]} 27. Nxd4 {[%emt 0:00:02][%cal Bc2d4,Bd4e2,Be2g3,Bg3e4][%mdl 32]} Kf8 {[%emt 0:00:38]} 28. h3 {[%emt 0:02:42]} Ke7 {[%emt 0:05:47]} 29. g4 {[%emt 0:00:16]} h6 {[%emt 0:00:50]} 30. Bf1 {[%emt 0:01:40]} Kd6 {[%emt 0:01:53]} 31. Bg2 {[%emt 0:01:13]} Re8 {[%emt 0:02:08]} 32. Ne2 {[%emt 0:00:15]} Be6 {[%emt 0:00:49]} (32... c5 $14) 33. Ng3 {[%emt 0:01:23][%cal Ob3b4]} g6 {[%emt 0:00:50]} 34. g5 {[%emt 0:00:42]} (34. Nxe4+ Nxe4 35. Bxe4 f5 $16 (35... Bxg4 36. Bxg6 Be6 37. Bh5 $16)) 34... hxg5 {[%emt 0:00:02]} 35. fxg5 {[%emt 0:00:01]} Nd5 {[%emt 0:00:06]} 36. Nxe4+ {[%emt 0:00:14]} Kc7 {[%emt 0:00:38][%cal Oe6h3]} 37. Nc5 {[%emt 0:00:35]} Nb4 {[%emt 0:00:21] [#]} ({Better is} 37... Rbd8 $14) 38. Rf1 $1 $16 {[%emt 0:01:18]} Rbd8 {[%emt 0:01:03]} 39. Nxe6+ {[%emt 0:02:11]} fxe6 {[%emt 0:00:01]} 40. Rf7+ {[%emt 0:02:05]} Kb6 {[%emt 0:00:11] [#]} 41. Be4 {[%emt 0:09:52] White is more active.} ({White should play} 41. Rd1 $1 $16) 41... Rxd2 $11 {[%emt 0:04:59]} 42. Bxg6 {[%emt 0:00:23][%cal Of7b7] aiming for Rxb7+!} Rg8 $1 {[%emt 0:04:37] The position is equal.} 43. Rf6 {[%emt 0:00:19]} Nd5 {[%emt 0:02:24][%csl LRe3,LRf6]} 44. Rxe6 {[%emt 0:00:26]} Nc7 {[%emt 0:00:02]} 45. Rf6 {[%emt 0:04:08]} Nd5 {[%emt 0:00:42][%csl LRe3,LRf6]} 46. Re6 {[%emt 0:01:45]} Nc7 {[%emt 0:00:05]} 47. Rf6 {[%emt 0:00:49] Hoping for e4.} Nd5 $1 {[%emt 0:00:03][%csl LRe3,LRf6] Weighted Error Value: White=0.15 (very precise) /Black=0.12 (very precise) .  Mistake:       	White=1     	Black=2      Inaccurate:     	White=2     	Black=3      OK:         	White=15    	Black=13     Best:        	White=2     	Black=2      Strong:       	White=1     	Black=1} 1/2-1/2

[Event "Mitropa Cup Women 2024"]
[Site "Apolda"]
[Date "2024.02.19"]
[Round "5.3"]
[White "Navrotescu, Andreea"]
[Black "Ivan-Gal, Hanna Krisztina"]
[Result "1-0"]
[ECO "E62"]
[WhiteElo "2222"]
[BlackElo "2191"]
[Annotator "RC"]
[PlyCount "127"]
[EventDate "2024.02.15"]
[EventType "team-tourn"]
[EventCountry "GER"]
[SourceTitle "playchess.com"]
[Source "ChessBase"]
[SourceQuality "1"]
[WhiteTeam "France"]
[BlackTeam "Hungary"]
[WhiteTeamCountry "FRA"]
[BlackTeamCountry "HUN"]
[TimeControl "40/5400+30:1800+30"]

1. d4 {[%emt 0:00:03]} Nf6 {[%emt 0:00:07]} 2. c4 {[%emt 0:00:08]} g6 {[%emt 0:00:07]} 3. g3 {[%emt 0:00:34]} Bg7 {[%emt 0:00:13]} 4. Bg2 {[%emt 0:00:10]} O-O {[%emt 0:00:21]} 5. Nc3 {[%emt 0:00:57]} d6 {[%emt 0:01:00]} 6. Nf3 {[%emt 0:00:41]} Nc6 {[%emt 0:00:39]} 7. O-O {[%emt 0:00:24]} e5 {[%emt 0:01:33]} 8. dxe5 {[%emt 0:01:08]} dxe5 {[%emt 0:00:14]} 9. Bg5 {[%emt 0:00:21]} Qxd1 {[%emt 0:06:38]} 10. Raxd1 {[%emt 0:01:16]} h6 {[%emt 0:03:26]} 11. Bc1 {[%emt 0:03:39]} Be6 {[%emt 0:02:55]} 12. b3 {[%emt 0:04:54]} Rfd8 {[%emt 0:05:19]} 13. Na4 {[%emt 0:04:48]} Nd7 {[%emt 0:07:06]} 14. Rd2 {[%emt 0:15:20]} Bf8 {[%emt 0:18:58]} 15. Ne1 {[%emt 0:06:03]} Nb6 {[%emt 0:02:52]} 16. Rxd8 {[%emt 0:06:05]} Rxd8 {[%emt 0:00:26]} 17. Nc3 {[%emt 0:00:30]} a5 {[%emt 0:13:54]} 18. Nd3 {[%emt 0:03:31]} Bg7 {[%emt 0:06:11]} 19. Nb5 {[%emt 0:02:47]} Bg4 {[%emt 0:03:52]} 20. Nc5 {[%emt 0:07:12]} Bxe2 {[%emt 0:03:28]} 21. Re1 {[%emt 0:00:02]} Rd1 {[%emt 0:00:10]} 22. Rxd1 {[%emt 0:00:05]} Bxd1 {[%emt 0:00:05]} 23. Nxb7 {[%emt 0:01:05]} Nd4 {[%emt 0:02:10]} 24. Nxd4 {[%emt 0:01:42]} exd4 {[%emt 0:00:03]} 25. Nxa5 {[%emt 0:00:16]} d3 {[%emt 0:02:26]} 26. Bd2 {[%emt 0:00:13]} Bf8 {[%emt 0:03:00]} 27. Kf1 {[%emt 0:06:59]} Nd7 {[%emt 0:05:01]} 28. Ke1 {[%emt 0:00:18]} Bc2 {[%emt 0:00:09]} 29. b4 {[%emt 0:06:14]} Bg7 {[%emt 0:04:49]} 30. c5 {[%emt 0:03:41]} h5 {[%emt 0:02:49]} 31. Nc4 {[%emt 0:03:34]} Kf8 {[%emt 0:02:44]} 32. Bc6 {[%emt 0:02:01]} Nb8 {[%emt 0:00:18]} 33. Bb7 {[%emt 0:02:18]} Bd4 {[%emt 0:01:42]} 34. Ne3 {[%emt 0:02:24]} Ba4 {[%emt 0:00:29]} 35. Bd5 {[%emt 0:01:11]} Nc6 {[%emt 0:00:58]} 36. Be4 {[%emt 0:03:22]} Ne5 {[%emt 0:00:31]} 37. f4 {[%emt 0:02:54]} f5 {[%emt 0:00:53]} 38. Bg2 {[%emt 0:02:33]} Ng4 {[%emt 0:00:23]} 39. Nxg4 {[%emt 0:00:25]} hxg4 {[%emt 0:00:03]} 40. Bd5 {[%emt 0:00:33]} Ke7 {[%emt 0:01:12]} 41. Bc4 {[%emt 0:30:47]} Bc2 {[%emt 0:01:50]} 42. Bb5 {[%emt 0:00:00]} Kd8 {[%emt 0:04:29]} 43. Bc6 {[%emt 0:00:00]} Bf6 {[%emt 0:10:07]} 44. a4 {[%emt 0:00:00]} Bb3 {[%emt 0:00:22]} 45. Bb5 {[%emt 0:00:00]} Kc8 {[%emt 0:01:12]} 46. a5 {[%emt 0:00:00]} Kb7 {[%emt 0:00:57]} 47. Bxd3 {[%emt 0:00:00]} Bd4 {[%emt 0:02:53]} 48. Bb5 {[%emt 0:00:00]} Bd5 {[%emt 0:04:17]} 49. Be8 {[%emt 0:00:00]} c6 {[%emt 0:00:23]} 50. Bxg6 {[%emt 0:00:00]} Be4 {[%emt 0:00:03]} 51. Bf7 {[%emt 0:00:00]} Bd3 {[%emt 0:00:36]} 52. Be6 {[%emt 0:00:00]} Bf6 {[%emt 0:01:11]} 53. Kd1 {[%emt 0:00:00]} Bd4 {[%emt 0:00:08]} 54. Kc1 {[%emt 0:00:00]} Bf6 {[%emt 0:01:06]} 55. Be1 {[%emt 0:00:00]} Bd4 {[%emt 0:00:45]} 56. Kd2 {[%emt 0:00:00]} Be4 {[%emt 0:00:09]} 57. Bc4 {[%emt 0:00:00]} Ka7 {[%emt 0:01:09]} 58. Bd3 {[%emt 0:00:00]} Bxd3 {[%emt 0:00:42]} 59. Kxd3 {[%emt 0:00:00]} Bg1 {[%emt 0:00:47]} 60. Ke2 {[%emt 0:00:00]} Bd4 {[%emt 0:00:09]} 61. Kf1 {[%emt 0:00:00]} Ka6 {[%emt 0:00:13]} 62. Kg2 {[%emt 0:00:00]} Kb5 {[%emt 0:00:12]} 63. h3 {[%emt 0:00:00]} gxh3+ {[%emt 0:00:05]} 64. Kxh3 {[%emt 0:00:00]} 1-0